bitfinex/quotes_BTCUSD_20230109
["timestamp","ask_amount","ask_price","bid_price","bid_amount"]
[1673272006204,5.05243516,17262.0,17261.0,0.00527188]
[1673272006685,4.65816483,17262.0,17261.0,0.00527188]
[1673272007914,4.58270801,17262.0,17261.0,0.00527188]
[1673272008441,4.76033433,17262.0,17261.0,0.00527188]
[1673272008716,2.96982832,17262.0,17261.0,0.00527188]
[1673272009222,3.22900401,17262.0,17261.0,0.00527188]
[1673272009490,3.40178211,17262.0,17261.0,0.00527188]
[1673272009745,4.05231408,17262.0,17261.0,0.00527188]
[1673272010521,4.35231408,17262.0,17261.0,0.00527188]
[1673272011019,0.81188037,17261.0,17260.0,0.10527188]
[1673272011290,3.22312957,17261.0,17260.0,0.10527188]
[1673272012126,3.80246957,17261.0,17260.0,0.10527188]
[1673272012286,4.06191094,17261.0,17260.0,0.10527188]
[1673272012545,3.62951768,17261.0,17260.0,0.10527188]
[1673272012779,3.76551768,17261.0,17260.0,0.10527188]
[1673272013285,3.93852957,17261.0,17260.0,0.10527188]
[1673272014030,3.76578105,17261.0,17260.0,0.11377188]
[1673272014284,4.20912105,17261.0,17260.0,0.11377188]
[1673272014534,4.17230742,17261.0,17260.0,0.11377188]
[1673272014776,4.03630742,17261.0,17260.0,0.11377188]
[1673272015023,4.17195497,17261.0,17260.0,0.11377188]
[1673272015274,4.43892482,17261.0,17260.0,0.11377188]
[1673272015535,3.73956171,17261.0,17260.0,0.11377188]
[1673272015785,3.60356171,17261.0,17260.0,0.10527188]
[1673272016035,3.73856171,17261.0,17260.0,0.10527188]
[1673272017549,4.25698202,17261.0,17260.0,0.10527188]
[1673272017797,3.73856171,17261.0,17260.0,0.10527188]
[1673272019054,4.25698202,17261.0,17260.0,0.10527188]
[1673272020074,3.73856171,17261.0,17260.0,0.10527188]
[1673272020324,3.73850171,17261.0,17260.0,0.10527188]
[1673272020817,3.73850171,17261.0,17260.0,0.11377188]
[1673272021084,3.73850171,17261.0,17260.0,0.10527188]
[1673272021336,3.64575983,17261.0,17260.0,0.01253]
[1673272022096,3.7170543,17261.0,17260.0,0.02103]
[1673272022360,3.7170552,17261.0,17260.0,0.02103]
[1673272022661,3.28345083,17261.0,17260.0,0.02103]
[1673272022877,3.71708619,17261.0,17260.0,0.02103]
[1673272023127,3.28345083,17261.0,17260.0,0.02103]
[1673272023431,3.71708722,17261.0,17260.0,0.13273]
[1673272023664,3.76400758,17261.0,17260.0,0.13273]
[1673272023914,3.76401115,17261.0,17260.0,0.13273]
[1673272024417,2.07424032,17261.0,17260.0,0.13273]
[1673272024934,0.91556032,17261.0,17260.0,0.13273]
[1673272025190,0.91556032,17261.0,17260.0,0.3662898]
[1673272025432,0.74216118,17261.0,17260.0,0.4779898]
[1673272026707,0.56872199,17261.0,17260.0,0.4779898]
[1673272026951,0.91564592,17261.0,17260.0,0.4779898]
[1673272027268,1.472704,17261.0,17260.0,0.24443]
[1673272027464,2.08765023,17261.0,17260.0,0.01253]
[1673272027737,2.34628134,17261.0,17260.0,0.01253]
[1673272027987,2.73070165,17261.0,17260.0,0.01253]
[1673272028235,3.2209251,17261.0,17260.0,0.01253]
[1673272028747,3.30708222,17261.0,17260.0,0.01253]
[1673272029261,3.88642222,17261.0,17260.0,0.01253]
[1673272029520,3.94619111,17261.0,17260.0,0.01253]
[1673272029771,4.52993374,17261.0,17260.0,0.01253]
[1673272030022,4.95984195,17261.0,17260.0,0.01253]
[1673272030305,4.52993374,17261.0,17260.0,0.01253]
[1673272030530,3.56396766,17261.0,17260.0,0.01253]
[1673272030798,3.50419877,17261.0,17260.0,0.01253]
[1673272032322,4.02462369,17261.0,17260.0,0.01253]
[1673272033091,3.50419877,17261.0,17260.0,0.01253]
[1673272033342,3.66178441,17261.0,17260.0,0.01253]
[1673272034088,4.67530597,17261.0,17260.0,0.01253]
[1673272034342,5.32005275,17261.0,17260.0,0.01253]
[1673272034597,4.13173269,17261.0,17260.0,0.01253]
[1673272034909,5.12435714,17261.0,17260.0,0.01127701]
[1673272035368,5.07612603,17261.0,17260.0,0.01127701]
[1673272036427,4.43716989,17261.0,17260.0,0.01127701]
[1673272036695,5.13963793,17261.0,17260.0,0.01127701]
[1673272036960,4.94875075,17261.0,17260.0,0.01127701]
[1673272037257,5.08475075,17261.0,17260.0,0.01127701]
[1673272037554,5.29081895,17261.0,17260.0,0.01127701]
[1673272037814,5.42681895,17261.0,17260.0,0.01127701]
[1673272038099,5.13950521,17261.0,17260.0,0.01127701]
[1673272038362,6.04271732,17261.0,17260.0,0.01127701]
[1673272038640,5.18906826,17261.0,17260.0,0.01127701]
[1673272039458,5.42681895,17261.0,17258.0,0.02031184]
[1673272039711,1.34766018,17259.0,17258.0,0.02031184]
[1673272039960,4.73457911,17259.0,17258.0,0.02031184]
[1673272040262,4.794348,17259.0,17258.0,0.02031184]
[1673272041026,5.34842164,17259.0,17258.0,0.02031184]
[1673272041273,5.48442164,17259.0,17258.0,0.02031184]
[1673272041527,5.66278568,17259.0,17258.0,0.02031184]
[1673272042864,5.28165663,17259.0,17258.0,0.02031184]
[1673272043068,5.28165663,17259.0,17258.0,0.01828066]
[1673272043587,5.07743971,17259.0,17258.0,0.01828066]
[1673272044415,5.45120272,17259.0,17258.0,0.01828066]
[1673272045463,4.77857082,17259.0,17258.0,0.01828066]
[1673272045707,5.41431793,17259.0,17258.0,0.01828066]
[1673272046237,5.18393027,17259.0,17258.0,0.01828066]
[1673272046486,5.8672923,17259.0,17258.0,0.01828066]
[1673272046762,5.32593285,17259.0,17258.0,0.01828066]
[1673272047249,5.18993285,17259.0,17258.0,0.01828066]
[1673272047513,5.1684071,17259.0,17257.0,0.02175552]
[1673272047766,3.11040856,17258.0,17257.0,0.02175552]
[1673272048012,3.59786613,17258.0,17257.0,0.02175552]
[1673272048259,4.12289203,17258.0,17257.0,0.02175552]
[1673272048568,4.18266092,17258.0,17257.0,0.02175552]
[1673272049063,4.61375353,17258.0,17257.0,0.02175552]
[1673272049342,4.91375353,17258.0,17257.0,0.02175552]
[1673272049589,4.9379062,17258.0,17257.0,0.02175552]
[1673272050727,5.0739062,17258.0,17257.0,0.02175552]
[1673272050882,4.9379062,17258.0,17257.0,0.02175552]
[1673272051139,5.0739062,17258.0,17257.0,0.01957997]
[1673272051381,5.0559762,17258.0,17257.0,0.01957997]
[1673272051628,5.3456962,17258.0,17257.0,0.01957997]
[1673272052703,5.9251372,17258.0,17257.0,0.01957997]
[1673272053450,5.25614293,17258.0,17257.0,0.01957997]
[1673272053721,5.9187951,17258.0,17257.0,0.01957997]
[1673272053974,5.32793835,17258.0,17257.0,0.01957997]
[1673272055209,5.03821835,17258.0,17257.0,0.01957997]
[1673272055717,6.20624684,17258.0,17257.0,0.01957997]
[1673272057015,5.19103896,17258.0,17257.0,0.01957997]
[1673272057472,5.62223228,17258.0,17257.0,0.01957997]
[1673272057721,6.21610941,17258.0,17257.0,0.01957997]
[1673272058228,4.89103896,17258.0,17257.0,0.01957997]
[1673272058477,5.35040132,17258.0,17257.0,0.01957997]
[1673272058737,5.35034132,17258.0,17257.0,0.01957997]
[1673272059479,5.65034132,17258.0,17257.0,0.01957997]
[1673272060486,5.70998674,17258.0,17257.0,0.01957997]
[1673272060740,5.65037068,17258.0,17257.0,0.01957997]
[1673272061469,5.13121007,17258.0,17257.0,0.01957997]
[1673272062217,4.52231007,17258.0,17257.0,0.01957997]
[1673272062695,5.04147068,17258.0,17257.0,0.01957997]
[1673272062939,5.60356445,17258.0,17257.0,0.01957997]
[1673272063920,5.57523327,17258.0,17257.0,0.01957997]
[1673272064169,6.15924783,17258.0,17257.0,0.01762198]
[1673272064662,5.65331836,17258.0,17257.0,0.01762198]
[1673272066187,6.23768723,17258.0,17257.0,0.01762198]
[1673272066425,5.65331836,17258.0,17257.0,0.01762198]
[1673272069986,4.66003127,17258.0,17257.0,0.01762198]
[1673272070231,4.94496444,17258.0,17257.0,0.01762198]
[1673272070972,4.90352732,17258.0,17257.0,0.01762198]
[1673272071481,5.20352732,17258.0,17257.0,0.01762198]
[1673272072747,4.61859415,17258.0,17257.0,0.01762198]
[1673272073300,5.56959358,17258.0,17257.0,0.01585979]
[1673272073497,5.6110307,17258.0,17257.0,0.01585979]
[1673272075504,6.45453638,17258.0,17257.0,0.01585979]
[1673272075797,5.76537962,17258.0,17257.0,0.01585979]
[1673272076317,5.87697962,17258.0,17257.0,0.01585979]
[1673272076546,0.78423513,17256.0,17255.0,0.02175552]
[1673272076793,4.65608468,17256.0,17255.0,0.02175552]
[1673272077070,5.01572079,17256.0,17255.0,0.02175552]
[1673272077292,5.65408166,17256.0,17255.0,0.02175552]
[1673272078015,5.79008166,17256.0,17255.0,0.02175552]
[1673272079025,5.19315791,17256.0,17255.0,0.02175552]
[1673272079267,6.04731548,17256.0,17255.0,0.02175552]
[1673272079761,6.74260174,17256.0,17255.0,0.02175552]
[1673272080011,6.74260174,17256.0,17252.0,0.02346675]
[1673272080012,6.50739337,17256.0,17252.0,0.02346675]
[1673272080271,6.50739337,17256.0,17252.0,0.19842694]
[1673272080272,0.73968363,17253.0,17252.0,0.19842694]
[1673272080522,3.42603679,17253.0,17252.0,0.02346675]
[1673272080762,3.72603679,17253.0,17252.0,0.02346675]
[1673272081512,3.42603679,17253.0,17252.0,0.26618496]
[1673272081758,2.9164446,17253.0,17252.0,0.02346675]
[1673272082004,2.39621063,17253.0,17252.0,0.02346675]
[1673272082738,2.78153762,17253.0,17252.0,0.02346675]
[1673272084540,3.49614662,17253.0,17252.0,0.02346675]
[1673272084789,3.14081963,17253.0,17252.0,0.02346675]
[1673272085039,4.20558289,17253.0,17252.0,0.02346675]
[1673272085285,4.98543616,17253.0,17252.0,0.02346675]
[1673272085530,5.28162948,17253.0,17252.0,0.02346675]
[1673272085776,4.69641232,17253.0,17252.0,0.02346675]
[1673272086021,4.67267081,17253.0,17252.0,0.02346675]
[1673272086269,4.53867081,17253.0,17252.0,0.02346675]
[1673272086507,4.67367081,17253.0,17252.0,0.02346675]
[1673272086749,4.63223369,17253.0,17252.0,0.02346675]
[1673272087004,5.15341686,17253.0,17252.0,0.02346675]
[1673272087771,4.61557022,17253.0,17252.0,0.02346675]
[1673272088285,5.04676354,17253.0,17252.0,0.02346675]
[1673272089040,5.02199754,17253.0,17252.0,0.02346675]
[1673272090042,4.43669419,17253.0,17252.0,0.02112008]
[1673272090531,4.41998481,17253.0,17252.0,0.02112008]
[1673272090786,4.03026687,17253.0,17252.0,0.02112008]
[1673272091024,4.55541771,17253.0,17252.0,0.02112008]
[1673272091273,4.61505382,17253.0,17252.0,0.02112008]
[1673272092030,5.04624714,17253.0,17252.0,0.02112008]
[1673272092280,5.07036019,17253.0,17252.0,0.02112008]
[1673272092776,5.65510386,17253.0,17252.0,0.02112008]
[1673272094496,5.22391054,17253.0,17252.0,0.02112008]
[1673272096509,5.65510386,17253.0,17252.0,0.02112008]
[1673272096767,5.81778767,17253.0,17252.0,0.02112008]
[1673272097008,6.24898099,17253.0,17252.0,0.02112008]
[1673272097524,5.66423732,17253.0,17252.0,0.02112008]
[1673272098028,5.66423732,17253.0,17252.0,0.01900808]
[1673272099308,4.95276272,17253.0,17252.0,0.01900808]
[1673272099616,4.99194145,17253.0,17252.0,0.01268066]
[1673272099823,5.05248418,17253.0,17252.0,0.00647159]
[1673272100090,5.05248418,17253.0,17251.0,0.01993428]
[1673272100091,0.93953653,17252.0,17251.0,0.01993428]
[1673272100339,4.10552201,17252.0,17251.0,0.01204848]
[1673272100591,4.66515812,17252.0,17251.0,0.01204848]
[1673272100887,6.06413562,17252.0,17249.0,0.02465206]
[1673272101106,1.33250812,17250.0,17249.0,0.02465206]
[1673272101370,4.16514044,17250.0,17249.0,0.02465206]
[1673272101619,4.22477655,17250.0,17249.0,0.02465206]
[1673272101918,3.79358323,17250.0,17249.0,0.02465206]
[1673272102158,4.31784413,17250.0,17249.0,0.02465206]
[1673272102401,5.09119024,17250.0,17249.0,0.02465206]
[1673272102668,5.52238356,17250.0,17249.0,0.02465206]
[1673272102902,4.93848655,17250.0,17249.0,0.02465206]
[1673272103170,0.93953653,17248.0,17246.0,0.01771133]
[1673272103480,4.83356728,17247.0,17246.0,0.01771133]
[1673272103663,5.90701559,17247.0,17246.0,0.01771133]
[1673272103907,5.54437056,17247.0,17246.0,0.01771133]
[1673272104156,5.60393326,17247.0,17246.0,0.01771133]
[1673272104414,5.08528799,17247.0,17246.0,0.01771133]
[1673272104653,4.47638799,17247.0,17246.0,0.01771133]
[1673272104908,4.48538799,17247.0,17246.0,0.01771133]
[1673272105150,4.91765583,17247.0,17246.0,0.01771133]
[1673272105399,4.48538799,17247.0,17246.0,0.01771133]
[1673272105642,4.48538799,17247.0,17246.0,0.00291133]
[1673272106398,5.04668132,17247.0,17246.0,0.00291133]
[1673272106644,5.56532659,17247.0,17246.0,0.00291133]
[1673272107148,6.17422659,17247.0,17246.0,0.00291133]
[1673272107396,6.17422659,17247.0,17246.0,0.00275296]
[1673272107640,6.17422659,17247.0,17246.0,0.00247767]
[1673272107641,5.65558132,17247.0,17246.0,0.00247767]
[1673272107880,6.73029637,17247.0,17246.0,0.00247767]
[1673272108404,0.5,17246.0,17245.0,0.0041]
[1673272108662,5.01760261,17246.0,17245.0,0.0041]
[1673272108892,5.94577725,17246.0,17245.0,0.0041]
[1673272109175,5.39903089,17246.0,17245.0,0.0041]
[1673272109416,5.47634065,17246.0,17245.0,0.0041]
[1673272109669,5.24779458,17246.0,17245.0,0.0041]
[1673272110175,5.38279458,17246.0,17245.0,0.0041]
[1673272110419,2.04568795,17245.0,17244.0,0.0001]
[1673272110668,5.36411323,17245.0,17244.0,0.0001]
[1673272110987,1.43953653,17244.0,17243.0,0.0001]
[1673272111181,2.61948836,17244.0,17243.0,0.0001]
[1673272111438,4.6046519,17244.0,17243.0,0.0001]
[1673272111677,5.29031375,17244.0,17243.0,0.0001]
[1673272111940,0.93953653,17242.0,17239.0,0.62008913]
[1673272112190,0.93953653,17242.0,17239.0,0.219236]
[1673272112191,3.23786,17241.0,17239.0,0.219236]
[1673272112433,0.7570459,17240.0,17239.0,0.219236]
[1673272112714,2.7971839,17240.0,17239.0,0.219236]
[1673272113197,2.7971839,17240.0,17239.0,0.119236]
[1673272113479,2.7971839,17240.0,17239.0,0.0975362]
[1673272113688,2.8121839,17240.0,17238.0,0.0001]
[1673272113946,1.05721414,17239.0,17238.0,0.0001]
[1673272114210,3.47000193,17239.0,17238.0,0.0001]
[1673272114462,3.97232176,17239.0,17238.0,0.0001]
[1673272114824,4.98227816,17239.0,17238.0,0.0001]
[1673272115005,4.98227816,17239.0,17238.0,4e-05]
[1673272115006,5.9166558,17239.0,17238.0,4e-05]
[1673272115275,5.18009311,17239.0,17238.0,4e-05]
[1673272115799,5.35234116,17239.0,17238.0,4e-05]
[1673272116044,5.19509142,17239.0,17238.0,4e-05]
[1673272116305,0.83063653,17238.0,17237.0,0.02410761]
[1673272116554,4.8514366,17238.0,17237.0,0.02410761]
[1673272116802,5.45504924,17238.0,17237.0,0.02410761]
[1673272117058,5.13437977,17238.0,17237.0,0.02410761]
[1673272117315,4.53075013,17238.0,17237.0,0.02410761]
[1673272117559,4.687415,17238.0,17237.0,0.02410761]
[1673272117800,4.25698917,17238.0,17237.0,0.02410761]
[1673272118046,3.75698917,17238.0,17237.0,0.02410761]
[1673272118293,3.45698917,17238.0,17237.0,0.02410761]
[1673272118793,3.88818249,17238.0,17237.0,0.01197177]
[1673272119049,4.30690478,17238.0,17237.0,0.01197177]
[1673272119544,5.38786574,17238.0,17237.0,0.01197177]
[1673272119790,5.75713061,17238.0,17237.0,0.01197177]
[1673272120043,5.06757242,17238.0,17237.0,0.01197177]
[1673272120288,5.49876574,17238.0,17237.0,0.01197177]
[1673272120785,5.49876574,17238.0,17237.0,0.00575405]
[1673272120786,4.89551146,17238.0,17237.0,0.00575405]
[1673272121032,4.79708249,17238.0,17237.0,0.00575405]
[1673272121288,4.36588917,17238.0,17237.0,0.00575405]
[1673272122523,4.79708249,17238.0,17237.0,0.00575405]
[1673272122796,3.74634206,17238.0,17237.0,0.00575405]
[1673272125089,4.29744097,17238.0,17237.0,0.00575405]
[1673272125359,4.78519307,17238.0,17237.0,0.00369442]
[1673272125606,4.78519307,17238.0,17235.0,0.0001]
[1673272125613,4.78519307,17238.0,17233.0,1.13631371]
[1673272125614,1.46767993,17237.0,17233.0,0.5244]
[1673272125854,3.03612617,17236.0,17234.0,0.0085]
[1673272126198,0.39557828,17235.0,17234.0,0.0085]
[1673272126594,2.43622028,17235.0,17234.0,0.0085]
[1673272127615,2.45122028,17235.0,17234.0,0.0085]
[1673272128135,1.87100628,17235.0,17234.0,0.0085]
[1673272129463,2.56395181,17235.0,17234.0,0.0085]
[1673272129708,4.13426627,17235.0,17234.0,0.001276]
[1673272129997,3.70045571,17235.0,17234.0,0.001276]
[1673272130197,4.11926627,17235.0,17234.0,0.001276]
[1673272130475,3.65013868,17235.0,17234.0,0.001276]
[1673272130707,4.64916324,17235.0,17234.0,0.001276]
[1673272130964,4.21535268,17235.0,17234.0,0.001276]
[1673272131219,3.84085236,17235.0,17234.0,0.001276]
[1673272131720,3.85685236,17235.0,17234.0,0.001276]
[1673272132470,4.89956292,17235.0,17234.0,0.001276]
[1673272132723,3.14516581,17235.0,17234.0,0.001276]
[1673272132992,3.60696969,17235.0,17234.0,0.001276]
[1673272133233,3.14516581,17235.0,17234.0,0.001276]
[1673272133799,3.57897637,17235.0,17234.0,0.001276]
[1673272134033,3.14516581,17235.0,17234.0,0.001276]
[1673272134300,3.14516581,17235.0,17234.0,0.00111696]
[1673272134301,4.27928784,17235.0,17234.0,0.00111696]
[1673272134823,5.01539488,17235.0,17234.0,0.00111696]
[1673272135390,5.27375975,17235.0,17234.0,0.0002141]
[1673272136184,5.44619607,17235.0,17234.0,1.657e-05]
[1673272136438,5.44619607,17235.0,17229.0,0.51330165]
[1673272136439,1.41827731,17234.0,17229.0,0.51330165]
[1673272136714,3.6393383,17233.0,17230.0,0.0085]
[1673272136992,1.25847653,17232.0,17230.0,0.0085]
[1673272137251,1.27660073,17231.0,17230.0,0.0085]
[1673272137505,1.85694973,17231.0,17230.0,0.0085]
[1673272138067,1.85694973,17231.0,17229.0,0.0385892]
[1673272138326,0.39642014,17230.0,17229.0,0.0385892]
[1673272138604,0.69642014,17230.0,17229.0,0.0385892]
[1673272139726,0.83949885,17230.0,17229.0,0.0385892]
[1673272140262,1.41988185,17230.0,17229.0,0.0385892]
[1673272140733,2.04316894,17230.0,17229.0,0.0085]
[1673272140735,1.87118614,17230.0,17229.0,0.0085]
[1673272140998,2.04316894,17230.0,17229.0,0.0085]
[1673272141243,2.20730596,17230.0,17229.0,0.0085]
[1673272141505,2.03207908,17230.0,17229.0,0.0085]
[1673272141760,3.21528364,17230.0,17229.0,0.0085]
[1673272142019,3.47904565,17230.0,17229.0,0.0085]
[1673272142271,3.28900836,17230.0,17229.0,0.0085]
[1673272142533,3.86939136,17230.0,17229.0,0.0085]
[1673272142795,1.68944071,17230.0,17229.0,0.0085]
[1673272143046,0.89648086,17230.0,17229.0,0.04170418]
[1673272143294,1.15495262,17230.0,17229.0,0.04170418]
[1673272143599,1.16895262,17230.0,17229.0,0.04170418]
[1673272143843,0.91048086,17230.0,17229.0,0.04170418]
[1673272144383,1.46895262,17230.0,17229.0,0.0085]
[1673272144645,1.46895262,17230.0,17229.0,0.04034415]
[1673272144912,1.45850409,17230.0,17229.0,0.04034415]
[1673272145422,1.20003233,17230.0,17229.0,0.04034415]
[1673272145895,1.45850409,17230.0,17229.0,0.04034415]
[1673272145896,1.80298003,17230.0,17228.0,0.01778056]
[1673272146152,0.81455789,17229.0,17228.0,0.01778056]
[1673272146446,1.11455789,17229.0,17228.0,0.01778056]
[1673272146734,2.3536625,17229.0,17228.0,0.01778056]
[1673272147041,2.35000184,17229.0,17228.0,0.01778056]
[1673272147299,1.71828677,17229.0,17228.0,0.01778056]
[1673272147555,1.2869173,17229.0,17228.0,0.01778056]
[1673272148089,1.2869173,17229.0,17228.0,0.02585078]
[1673272148660,2.46539914,17229.0,17228.0,0.02585078]
[1673272149178,3.6759875,17229.0,17228.0,0.01735078]
[1673272149433,0.46124443,17227.0,17226.0,0.0001]
[1673272149697,1.6214388,17227.0,17226.0,0.0001]
[1673272149990,1.92145718,17227.0,17226.0,0.0001]
[1673272150215,1.92145718,17227.0,17225.0,0.11280899]
[1673272150216,1.03876845,17227.0,17225.0,0.11280899]
[1673272150468,0.38369397,17226.0,17225.0,0.11280899]
[1673272150720,0.38369397,17226.0,17225.0,0.47511799]
[1673272151234,0.5562784,17226.0,17225.0,0.47511799]
[1673272151737,0.5692784,17226.0,17225.0,0.47511799]
[1673272152290,1.40866527,17226.0,17225.0,0.47511799]
[1673272152503,0.82814827,17226.0,17225.0,0.11280899]
[1673272152752,1.12814827,17226.0,17225.0,0.11280899]
[1673272153260,1.30071257,17226.0,17225.0,0.11280899]
[1673272153772,1.00071257,17226.0,17225.0,0.11280899]
[1673272154016,0.44452576,17226.0,17225.0,0.47511799]
[1673272154280,0.18565589,17226.0,17225.0,0.47511799]
[1673272155577,0.18565589,17226.0,17225.0,0.58641799]
[1673272155830,0.18565589,17226.0,17225.0,1.27866899]
[1673272155831,0.013,17226.0,17225.0,1.27866899]
[1673272156308,0.013,17226.0,17225.0,2.28769855]
[1673272156318,0.013,17226.0,17225.0,0.69811799]
[1673272156571,0.013,17226.0,17225.0,1.27866899]
[1673272157605,0.013,17226.0,17225.0,1.85921999]
[1673272157857,0.013,17226.0,17225.0,2.28769855]
[1673272158110,0.013,17226.0,17225.0,2.88769855]
[1673272158643,0.013,17226.0,17225.0,2.45921999]
[1673272158915,0.60407443,17227.0,17226.0,0.5]
[1673272159153,0.60407443,17227.0,17226.0,3.22007156]
[1673272159665,0.60407443,17227.0,17226.0,2.791593]
[1673272159931,0.60407443,17227.0,17226.0,3.22007156]
[1673272160201,0.60407443,17227.0,17226.0,3.52007156]
[1673272160448,0.21837443,17227.0,17226.0,11.36067156]
[1673272160702,0.21837443,17227.0,17226.0,11.52257156]
[1673272161243,0.22237443,17227.0,17226.0,11.66057156]
[1673272161460,0.21837443,17227.0,17226.0,12.02357156]
[1673272161716,0.22237443,17227.0,17226.0,12.21947859]
[1673272161965,0.00015,17229.0,17227.0,0.00870567]
[1673272162222,0.04825803,17230.0,17228.0,2.684041]
[1673272162533,0.00015,17231.0,17229.0,1.55953392]
[1673272162804,0.43152576,17234.0,17230.0,8.79012792]
[1673272162805,0.0479302,17233.0,17230.0,8.79012792]
[1673272163075,0.0479302,17233.0,17231.0,0.294964]
[1673272163328,0.0479302,17233.0,17232.0,1.277263]
[1673272163577,0.17265589,17233.0,17232.0,1.165863]
[1673272163894,0.17265589,17233.0,17232.0,0.585548]
[1673272164154,0.1735591,17233.0,17232.0,0.585548]
[1673272164415,0.1735591,17233.0,17232.0,0.724548]
[1673272164692,0.00090321,17233.0,17232.0,1.12371871]
[1673272164924,0.00090321,17233.0,17232.0,1.70403371]
[1673272166249,0.00090321,17233.0,17232.0,1.693163]
[1673272166532,0.1735591,17233.0,17232.0,1.693163]
[1673272166803,0.43242897,17233.0,17232.0,1.112848]
[1673272167069,0.43242897,17233.0,17232.0,1.001148]
[1673272167322,0.60492181,17233.0,17231.0,0.43802962]
[1673272167575,0.43255002,17233.0,17230.0,1.192256]
[1673272167836,0.43255002,17233.0,17230.0,1.772639]
[1673272168113,0.17277694,17232.0,17230.0,1.772639]
[1673272168393,0.43255002,17233.0,17230.0,2.353022]
[1673272168649,0.18468015,17233.0,17231.0,0.458092]
[1673272168901,0.18468015,17233.0,17231.0,0.743541]
[1673272169182,0.01190321,17233.0,17232.0,7.5]
[1673272169461,0.01190321,17233.0,17232.0,9.35286619]
[1673272169732,0.01190321,17233.0,17232.0,9.177906]
[1673272169977,0.01190321,17233.0,17232.0,9.869621]
[1673272169978,0.00090321,17233.0,17232.0,9.869621]
[1673272170779,0.01190321,17233.0,17232.0,9.921621]
[1673272172102,0.00090321,17233.0,17232.0,10.372421]
[1673272172875,0.00390321,17233.0,17232.0,10.511421]
[1673272173147,0.00090321,17233.0,17232.0,9.870621]
[1673272173399,0.00390321,17233.0,17232.0,10.009621]
[1673272173653,0.00090321,17233.0,17232.0,9.870621]
[1673272173897,0.00390321,17233.0,17232.0,10.009621]
[1673272174673,0.00090321,17233.0,17232.0,9.870621]
[1673272174913,0.00390321,17233.0,17232.0,10.009621]
[1673272175182,0.00390321,17233.0,17232.0,9.898221]
[1673272175438,0.2415811,17233.0,17232.0,8.157276]
[1673272175706,0.00390321,17233.0,17232.0,8.157276]
[1673272175962,0.00090321,17233.0,17232.0,7.794876]
[1673272176191,0.00490321,17233.0,17232.0,7.932876]
[1673272176453,0.00090321,17233.0,17232.0,7.794876]
[1673272177004,0.00390321,17233.0,17232.0,7.933876]
[1673272177225,0.00090321,17233.0,17232.0,7.794876]
[1673272177485,0.00190321,17233.0,17232.0,7.833876]
[1673272177994,0.00190321,17233.0,17232.0,8.414191]
[1673272178274,0.00190321,17233.0,17232.0,7.833876]
[1673272180292,0.00190321,17233.0,17232.0,9.105906]
[1673272181054,0.00190321,17233.0,17232.0,9.86118119]
[1673272181296,0.00190321,17233.0,17232.0,9.797021]
[1673272182092,0.00190321,17233.0,17232.0,9.908721]
[1673272183932,0.00190321,17233.0,17232.0,10.411321]
[1673272184189,0.00090321,17233.0,17232.0,10.372321]
[1673272184437,0.00090321,17233.0,17232.0,9.869821]
[1673272185017,0.00090321,17233.0,17232.0,9.878321]
[1673272185269,0.00090321,17233.0,17232.0,10.017321]
[1673272185510,0.00090321,17233.0,17232.0,9.878321]
[1673272185757,0.00090321,17233.0,17232.0,10.017321]
[1673272185758,0.00190321,17233.0,17232.0,10.017321]
[1673272187984,0.00190321,17233.0,17232.0,10.447026]
[1673272188263,0.00179879,17233.0,17232.0,10.447026]
[1673272190248,0.00179879,17233.0,17232.0,10.017321]
[1673272190745,0.00179879,17233.0,17232.0,10.447026]
[1673272192720,0.00179879,17233.0,17232.0,10.448291]
[1673272196165,0.00179879,17233.0,17232.0,10.337491]
[1673272196890,0.00179879,17233.0,17232.0,10.21153414]
[1673272200640,0.00179879,17233.0,17232.0,10.51153414]
[1673272200879,0.00179879,17233.0,17232.0,10.79532069]
[1673272202073,0.00179879,17233.0,17232.0,10.32323414]
[1673272202319,0.23947668,17233.0,17232.0,9.78182914]
[1673272202636,0.23947668,17233.0,17232.0,2.407786]
[1673272202888,0.00179879,17233.0,17232.0,2.407786]
[1673272203142,0.00179879,17233.0,17232.0,1.827471]
[1673272204381,0.00179879,17233.0,17232.0,1.715771]
[1673272204622,0.00179879,17233.0,17232.0,1.827471]
[1673272206836,0.00179879,17233.0,17232.0,2.25628926]
[1673272207341,0.00179879,17233.0,17232.0,2.83660426]
[1673272207856,0.00179879,17233.0,17232.0,2.407786]
[1673272209629,0.17277694,17234.0,17232.0,2.407786]
[1673272209630,0.12457573,17234.0,17233.0,0.5]
[1673272209876,0.12457573,17234.0,17233.0,1.771764]
[1673272209877,0.3834456,17234.0,17233.0,1.771764]
[1673272210142,0.3834456,17234.0,17233.0,2.066617]
[1673272211410,0.3834456,17234.0,17233.0,2.205617]
[1673272212406,0.72859433,17234.0,17233.0,2.205617]
[1673272212649,0.6040186,17234.0,17233.0,2.205617]
[1673272212903,0.25886987,17234.0,17233.0,2.205617]
[1673272213157,0.6040186,17235.0,17233.0,2.205617]
[1673272213407,0.6040186,17235.0,17233.0,2.491046]
[1673272213662,0.6040186,17235.0,17234.0,0.294834]
[1673272214189,0.6040186,17235.0,17234.0,0.875082]
[1673272214426,0.77758465,17235.0,17234.0,0.875082]
[1673272214945,0.77758465,17235.0,17234.0,1.45533]
[1673272214946,0.60607174,17235.0,17234.0,1.45533]
[1673272215180,0.26092301,17235.0,17234.0,1.45533]
[1673272215674,0.60507174,17235.0,17234.0,1.45533]
[1673272215922,0.60507174,17235.0,17234.0,1.59633]
[1673272216673,0.77658465,17235.0,17234.0,1.016082]
[1673272216916,1.40376361,17235.0,17234.0,1.016082]
[1673272217204,1.05861488,17235.0,17234.0,0.435834]
[1673272217439,0.62717896,17235.0,17234.0,0.435834]
[1673272218430,0.62717896,17235.0,17234.0,0.435832]
[1673272218728,0.88816171,17235.0,17234.0,0.435832]
[1673272219204,0.88816171,17235.0,17234.0,0.13914]
[1673272219997,1.32169367,17235.0,17234.0,0.13914]
[1673272220278,0.88816171,17235.0,17234.0,0.13914]
[1673272221533,0.09837194,17233.0,17232.0,0.009765]
[1673272221776,0.33604983,17233.0,17232.0,0.009765]
[1673272222013,0.96322879,17233.0,17232.0,0.009765]
[1673272222270,0.7255509,17233.0,17232.0,0.001265]
[1673272223068,1.7817015,17233.0,17232.0,0.005265]
[1673272223316,2.1934015,17233.0,17232.0,0.005265]
[1673272223561,3.1364405,17233.0,17232.0,0.005265]
[1673272223825,2.7736835,17233.0,17232.0,0.005265]
[1673272224088,3.1364405,17233.0,17232.0,0.005265]
[1673272224314,3.4167225,17233.0,17232.0,0.005265]
[1673272224561,2.8364405,17233.0,17232.0,0.005265]
[1673272224812,1.9535329,17233.0,17232.0,0.005265]
[1673272225058,1.3732509,17233.0,17232.0,0.005265]
[1673272225307,1.3732509,17233.0,17232.0,0.18022519]